bitfinex/quotes_BTCUSD_20250423
["timestamp","ask_amount","ask_price","bid_price","bid_amount"]
[1745427241904,0.001,93660.0,93656.0,0.01067737]
[1745427241905,0.002,93660.0,93656.0,0.01067737]
[1745427242129,0.001,93660.0,93654.0,0.0106776]
[1745427242346,0.10689014,93663.0,93654.0,0.2242293]
[1745427242561,0.10689014,93663.0,93656.0,0.01067737]
[1745427243019,0.10689014,93663.0,93653.0,0.21355355]
[1745427243371,0.10689014,93663.0,93655.0,0.01067748]
[1745427243589,0.10689014,93663.0,93653.0,0.01067771]
[1745427243823,0.10689014,93663.0,93654.0,0.21355165]
[1745427244047,0.10689014,93663.0,93657.0,0.01067725]
[1745427244298,0.001,93660.0,93659.0,0.21354061]
[1745427244519,0.001,93664.0,93659.0,0.21354061]
[1745427244744,0.001,93664.0,93661.0,0.22421142]
[1745427244954,0.001,93664.0,93661.0,0.0106768]
[1745427245506,0.001,93663.0,93662.0,0.21353239]
[1745427245924,0.001,93663.0,93661.0,0.22421264]
[1745427246774,0.001,93663.0,93660.0,0.01067691]
[1745427246988,0.001,93663.0,93660.0,0.22421485]
[1745427247192,0.001,93663.0,93661.0,0.21353544]
[1745427247419,0.002,93664.0,93659.0,0.01067703]
[1745427247630,0.001,93664.0,93661.0,0.0106768]
[1745427247865,0.003,93663.0,93661.0,0.22421217]
[1745427248450,0.004,93663.0,93661.0,0.22421217]
[1745427248830,0.004,93663.0,93662.0,0.21353377]
[1745427249474,0.005,93663.0,93662.0,0.21353377]
[1745427250685,0.004,93663.0,93655.0,0.21354973]
[1745427251013,0.002,93663.0,93657.0,0.01067725]
[1745427251315,0.004,93663.0,93657.0,0.22422211]
[1745427251450,0.004,93663.0,93658.0,0.22421986]
[1745427251821,0.002,93663.0,93655.0,0.34]
[1745427252032,0.11089014,93663.0,93655.0,0.35067748]
[1745427252275,0.11089014,93663.0,93655.0,0.34]
[1745427252507,0.10789014,93663.0,93655.0,0.34]
[1745427252741,0.10789014,93663.0,93654.0,0.0106776]
[1745427252742,0.10889014,93663.0,93654.0,0.0106776]
[1745427252919,0.10789014,93663.0,93654.0,0.0106776]
[1745427253055,0.10789014,93663.0,93655.0,0.35067748]
[1745427253252,0.10789014,93663.0,93657.0,0.34]
[1745427254267,0.10889014,93663.0,93657.0,0.34]
[1745427254484,0.10889014,93663.0,93657.0,0.35067725]
[1745427254687,0.10789014,93663.0,93661.0,0.21353571]
[1745427254909,0.10889014,93663.0,93660.0,0.22421514]
[1745427255141,0.10789014,93663.0,93660.0,0.22421514]
[1745427255367,0.10889014,93663.0,93661.0,0.2135356]
[1745427255619,0.10789014,93663.0,93659.0,0.34]
[1745427255832,0.10689014,93663.0,93659.0,0.34]
[1745427256065,0.10889014,93663.0,93659.0,0.34]
[1745427256289,0.11089014,93663.0,93659.0,0.34]
[1745427257222,0.10889014,93663.0,93659.0,0.34]
[1745427257424,0.11089014,93663.0,93659.0,0.34]
[1745427257628,0.10889014,93663.0,93659.0,0.34]
[1745427257920,0.10989014,93663.0,93659.0,0.34]
[1745427258319,0.003,93663.0,93654.0,0.34]
[1745427259100,0.002,93663.0,93654.0,0.34]
[1745427260290,0.001,93664.0,93654.0,0.34]
[1745427260496,0.001,93663.0,93654.0,0.34]
[1745427261652,0.001,93663.0,93653.0,0.34]
[1745427262139,0.001,93663.0,93653.0,0.55355349]
[1745427262371,0.001,93663.0,93653.0,0.34]
[1745427262795,0.001,93663.0,93654.0,0.00666822]
[1745427263025,0.001,93663.0,93655.0,0.00666822]
[1745427263238,0.001,93663.0,93662.0,0.21353377]
[1745427263453,0.001,93663.0,93662.0,0.55549263]
[1745427263671,0.001,93663.0,93662.0,0.60740199]
[1745427263883,0.001,93664.0,93663.0,0.56807234]
[1745427264092,0.001,93664.0,93663.0,0.67496248]
[1745427264320,0.001,93664.0,93663.0,0.6816307]
[1745427265347,0.001,93664.0,93663.0,0.6826307]
[1745427266418,0.001,93664.0,93663.0,0.6846307]
[1745427268158,0.001,93664.0,93663.0,0.6856307]
[1745427270925,0.0004251,93667.0,93664.0,0.56807006]
[1745427271758,0.0004251,93667.0,93664.0,0.57473652]
[1745427272160,0.0004251,93667.0,93664.0,0.57773652]
[1745427272998,0.0004251,93667.0,93664.0,0.57107006]
[1745427273526,0.0004251,93667.0,93664.0,0.57307006]
[1745427275309,0.0004251,93667.0,93664.0,0.345]
[1745427275516,0.0004251,93667.0,93664.0,0.005]
[1745427276395,0.0004251,93667.0,93664.0,0.21852921]
[1745427276604,0.0004251,93667.0,93664.0,0.55652921]
[1745427276814,0.0004251,93667.0,93664.0,0.66517006]
[1745427277165,0.0004251,93667.0,93664.0,0.4341]
[1745427277384,0.0004251,93667.0,93664.0,0.55352921]
[1745427278151,0.0004251,93667.0,93664.0,0.57473702]
[1745427279139,0.0004251,93667.0,93664.0,0.57107006]
[1745427280297,0.0004251,93667.0,93664.0,0.57407006]
[1745427280930,0.0004251,93667.0,93664.0,0.55952921]
[1745427289628,0.0004251,93667.0,93664.0,0.57407006]
[1745427289839,0.0004251,93667.0,93664.0,0.62157006]
[1745427292014,0.0004251,93667.0,93664.0,0.7777602]
[1745427295415,0.000425,93683.0,93667.0,0.34]
[1745427295625,0.000425,93683.0,93666.0,0.5680655]
[1745427295626,0.000425,93683.0,93668.0,1.14130905]
[1745427295865,0.000425,93683.0,93668.0,1.13935208]
[1745427296078,0.000425,93683.0,93668.0,0.78136708]
[1745427296538,0.000425,93683.0,93668.0,0.67495108]
[1745427296761,0.000425,93683.0,93668.0,1.11776408]
[1745427297075,0.000425,93683.0,93668.0,1.10726408]
[1745427297296,0.000425,93683.0,93668.0,1.10926408]
[1745427297727,0.000425,93683.0,93682.0,0.55348818]
[1745427297940,0.00088943,93683.0,93682.0,0.61312903]
[1745427298371,0.00088943,93683.0,93682.0,0.76681917]
[1745427299910,0.00488943,93683.0,93682.0,0.76681917]
[1745427300353,0.00488943,93683.0,93682.0,0.56802903]
[1745427300568,0.00688943,93683.0,93682.0,0.56802903]
[1745427308697,0.0458,93682.0,93663.0,0.00689]
[1745427308932,0.0458,93682.0,93670.0,0.3798485]
[1745427309161,0.0499,93681.0,93670.0,0.36917273]
[1745427309371,0.0499,93681.0,93670.0,0.3798485]
[1745427309583,0.0499,93681.0,93673.0,0.01067543]
[1745427309799,0.0499,93681.0,93674.0,0.01067532]
[1745427310036,0.0499,93681.0,93673.0,0.01067543]
[1745427310455,0.0499,93681.0,93674.0,0.01067532]
[1745427310863,0.0499,93681.0,93673.0,0.01067543]
[1745427311082,0.002,93682.0,93680.0,0.34]
[1745427311296,0.002,93682.0,93681.0,0.55349046]
[1745427311707,0.00188943,93683.0,93681.0,0.55349046]
[1745427311953,0.00188943,93683.0,93682.0,0.34]
[1745427313220,0.001,93681.0,93680.0,0.34]
[1745427313397,0.00188943,93683.0,93678.0,0.34]
[1745427313625,0.00188943,93683.0,93678.0,0.56417178]
[1745427313838,0.00488943,93683.0,93678.0,0.35067486]
[1745427314240,0.00288943,93683.0,93680.0,0.01067463]
[1745427314371,0.00188943,93683.0,93680.0,0.22416654]
[1745427314587,0.00288943,93683.0,93677.0,0.01067497]
[1745427314999,0.00288943,93683.0,93678.0,0.35067486]
[1745427315225,0.00288943,93683.0,93678.0,0.56417174]
[1745427315460,0.00288943,93683.0,93679.0,0.01067475]
[1745427315689,0.00288943,93683.0,93678.0,0.56417174]
[1745427315946,0.00288943,93683.0,93678.0,0.35067486]
[1745427316152,0.00288943,93683.0,93671.0,0.34]
[1745427316383,0.00373618,93682.0,93673.0,0.35067543]
[1745427316598,0.10877957,93683.0,93678.0,0.01067486]
[1745427316599,0.11077957,93683.0,93678.0,0.01067486]
[1745427316814,0.10977957,93683.0,93677.0,0.34]
[1745427317019,0.11077957,93683.0,93677.0,0.35067497]
[1745427317227,0.10977957,93683.0,93677.0,0.35067497]
[1745427317428,0.10977957,93683.0,93678.0,0.01067486]
[1745427317429,0.10877957,93683.0,93678.0,0.01067486]
[1745427317632,0.10877957,93683.0,93682.0,0.21348818]
[1745427318214,0.10977957,93683.0,93679.0,0.01067475]
[1745427318419,0.10977957,93683.0,93634.0,0.12973631]
[1745427318420,0.10977957,93683.0,93676.0,0.34]
[1745427318633,0.10977957,93683.0,93679.0,0.01067475]
[1745427319324,0.10977957,93683.0,93680.0,0.22416677]
[1745427319540,0.10877957,93683.0,93680.0,0.22416295]
[1745427319758,0.11177957,93683.0,93680.0,0.22416295]
[1745427320203,0.10877957,93683.0,93680.0,0.22416295]
[1745427320442,0.11077957,93683.0,93680.0,0.01067463]
[1745427320656,0.10977957,93683.0,93680.0,0.01067463]
[1745427320839,0.10977957,93683.0,93679.0,0.22416944]
[1745427321047,0.11077957,93683.0,93680.0,0.01067463]
[1745427321639,0.11077957,93683.0,93679.0,0.22416944]
[1745427321862,0.11077957,93683.0,93680.0,0.01067463]
[1745427322277,0.10977957,93683.0,93680.0,0.01067463]
[1745427322502,0.10977957,93683.0,93678.0,0.34]
[1745427322734,0.10977957,93683.0,93650.0,0.36917273]
[1745427322735,0.0962,93681.0,93650.0,0.36917273]
[1745427322972,0.00188943,93683.0,93642.0,0.01067896]
[1745427322973,0.10689014,93679.0,93642.0,0.01067896]
[1745427323192,0.0962,93677.0,93646.0,0.01067851]
[1745427323425,0.10689014,93674.0,93635.0,0.01067976]
[1745427323661,0.00373713,93676.0,93632.0,0.07973631]
[1745427323662,0.10689014,93665.0,93632.0,0.07973631]
[1745427323895,0.0483,93664.0,93636.0,0.34]
[1745427324128,0.10689014,93661.0,93639.0,0.35067931]
[1745427324359,0.0483,93660.0,93640.0,0.00666957]
[1745427324581,0.10689014,93659.0,93640.0,0.00666957]
[1745427324813,0.10304,93658.0,93640.0,0.35734876]
[1745427325035,0.10689014,93657.0,93641.0,0.01067908]
[1745427325277,0.10689014,93657.0,93642.0,0.01067896]
[1745427325758,0.10689014,93657.0,93641.0,0.01067908]
[1745427326205,0.10689014,93657.0,93638.0,0.34]
[1745427326426,0.10689014,93657.0,93646.0,0.01067851]
[1745427326699,0.10308,93656.0,93641.0,0.56426066]
[1745427326917,0.11062784,93655.0,93641.0,0.34]
[1745427327124,0.0942,93654.0,93641.0,0.34]
[1745427327366,0.11062787,93653.0,93641.0,0.34]
[1745427327592,0.10689014,93653.0,93641.0,0.01067908]
[1745427327825,0.10689014,93653.0,93641.0,0.35067908]
[1745427328065,0.10689014,93653.0,93643.0,0.01067885]
[1745427328287,0.10689014,93653.0,93646.0,0.22424782]
[1745427328516,0.10689014,93653.0,93648.0,0.01067828]
[1745427328731,0.10308,93652.0,93648.0,0.01067828]
[1745427328954,0.10689014,93651.0,93649.0,0.22424054]
[1745427329175,0.20997014,93651.0,93650.0,0.21356113]
[1745427329416,0.20997014,93651.0,93649.0,0.01067817]
[1745427329629,0.20997014,93651.0,93647.0,0.22424446]
[1745427329848,0.20997014,93651.0,93648.0,0.22424277]
[1745427330171,0.20997014,93651.0,93646.0,0.01067851]
[1745427330387,0.21297014,93651.0,93648.0,0.22424176]
[1745427330595,0.20997014,93651.0,93648.0,0.22424176]
[1745427330893,0.21197014,93651.0,93649.0,0.2135629]
[1745427331111,0.21197014,93651.0,93647.0,0.01067839]
[1745427331330,0.21397014,93651.0,93648.0,0.2242428]
[1745427331550,0.006,93651.0,93650.0,0.21356113]
[1745427331997,0.006,93651.0,93650.0,0.55356113]
[1745427333318,0.10308,93659.0,93654.0,0.21355176]
[1745427333551,0.003,93651.0,93650.0,0.55356113]
[1745427333783,0.10308,93658.0,93654.0,0.0106776]
[1745427334018,0.10689014,93663.0,93655.0,0.01067748]
[1745427334296,0.10308,93657.0,93655.0,0.01067748]
[1745427334492,0.10308,93657.0,93654.0,0.0106776]
[1745427334706,0.10308,93657.0,93651.0,0.34]
[1745427334903,0.10689014,93656.0,93648.0,0.01067828]
[1745427335033,0.10689014,93656.0,93650.0,0.34]
[1745427335946,0.0476,93655.0,93650.0,0.34]
[1745427336167,0.10689014,93654.0,93648.0,0.35067828]
[1745427336679,0.10689014,93654.0,93649.0,0.01067817]
[1745427337050,0.10689014,93654.0,93650.0,0.35067805]
[1745427337249,0.10689014,93654.0,93650.0,0.34]
[1745427337457,0.10689014,93654.0,93642.0,0.01067896]
[1745427337653,0.10689014,93654.0,93645.0,0.34]
[1745427337654,0.10889014,93654.0,93645.0,0.34]
[1745427338034,0.10789014,93654.0,93648.0,0.01067828]
[1745427338238,0.10889014,93654.0,93649.0,0.01067817]
[1745427338433,0.10889014,93654.0,93650.0,0.01067805]
[1745427338643,0.10889014,93654.0,93648.0,0.01067828]
[1745427338913,0.10889014,93654.0,93645.0,0.34]
[1745427339555,0.10889014,93654.0,93647.0,0.01067839]
[1745427339781,0.10889014,93654.0,93648.0,0.01067828]
[1745427339991,0.10889014,93654.0,93639.0,0.00012401]
[1745427340174,0.00373778,93653.0,93639.0,0.00012401]
[1745427340403,0.10689014,93652.0,93639.0,0.00012401]
[1745427341004,0.10689014,93652.0,93643.0,0.35067885]
[1745427341219,0.10689014,93652.0,93643.0,0.34]
[1745427341463,0.10689014,93652.0,93644.0,0.01067874]
[1745427341698,0.10689014,93652.0,93643.0,0.35067885]
[1745427341955,0.10689014,93652.0,93645.0,0.01067862]
[1745427342193,0.10889014,93652.0,93644.0,0.01067874]
[1745427342423,0.10889014,93652.0,93642.0,0.34]
[1745427343109,0.10989014,93652.0,93642.0,0.34]
[1745427343333,0.10789014,93652.0,93641.0,0.34]
[1745427343549,0.10689014,93652.0,93641.0,0.34]
[1745427343764,0.10889014,93652.0,93641.0,0.34]
[1745427343995,0.11089014,93652.0,93641.0,0.34]
[1745427344217,0.10889014,93652.0,93641.0,0.34]
[1745427344429,0.11189014,93652.0,93641.0,0.34]
[1745427345904,0.11189014,93652.0,93643.0,0.21357709]
[1745427346083,0.11189014,93652.0,93649.0,0.22424126]
[1745427346457,0.005,93652.0,93649.0,0.22424126]
[1745427346622,0.005,93652.0,93649.0,0.01067817]
[1745427346849,0.10308,93661.0,93658.0,0.01067714]
[1745427347055,0.10689014,93660.0,93652.0,0.01067782]
[1745427347302,0.10689014,93660.0,93650.0,0.36917273]
[1745427347460,0.10689014,93660.0,93647.0,0.35067839]
[1745427347667,0.10689014,93660.0,93650.0,0.36917273]
[1745427348229,0.003,93652.0,93650.0,0.36917273]
[1745427348452,0.003,93652.0,93648.0,0.01067828]
[1745427348658,0.003,93652.0,93651.0,0.21355885]
[1745427349454,0.10689014,93660.0,93657.0,0.01067725]
[1745427349657,0.10989014,93660.0,93657.0,0.01067725]
[1745427349814,0.11189014,93660.0,93656.0,0.01067737]
[1745427350488,0.10689014,93660.0,93656.0,0.22422352]
[1745427350637,0.10689014,93660.0,93656.0,0.01067737]
[1745427350858,0.11289014,93660.0,93656.0,0.01067737]
[1745427351081,0.003,93660.0,93657.0,0.01067725]
[1745427351277,0.003,93660.0,93657.0,0.22422206]
[1745427351560,0.003,93660.0,93659.0,0.21354061]
[1745427351801,0.10308,93673.0,93662.0,0.22420846]
[1745427352032,0.10689014,93672.0,93664.0,0.01067646]
[1745427352631,0.10689014,93672.0,93663.0,0.3798493]
[1745427352817,0.10689014,93672.0,93663.0,0.36917273]
[1745427353049,0.10689014,93672.0,93663.0,0.3798493]
[1745427353329,0.10689014,93672.0,93663.0,0.36917273]
[1745427353835,0.10889014,93672.0,93663.0,0.3798493]
[1745427354126,0.11089014,93672.0,93663.0,0.36917273]
[1745427354351,0.10889014,93672.0,93664.0,0.01067646]
[1745427354517,0.10889014,93672.0,93663.0,0.36917273]
[1745427354706,0.10889014,93672.0,93663.0,0.3798493]
[1745427354937,0.10889014,93672.0,93663.0,0.36917273]
[1745427355145,0.00373665,93671.0,93663.0,0.36917273]
[1745427355365,0.10689014,93670.0,93663.0,0.36917273]
[1745427355562,0.0967,93669.0,93642.0,0.01067896]
[1745427355782,0.10689014,93668.0,93648.0,0.35067828]
[1745427355984,0.10689014,93668.0,93650.0,0.01067805]
[1745427356156,0.10689014,93668.0,93651.0,0.35067794]
[1745427356365,0.10689014,93668.0,93651.0,0.34]
[1745427356932,0.10689014,93668.0,93631.0,0.0008502]
[1745427356933,0.11062741,93667.0,93631.0,0.0008502]
[1745427357158,0.10689014,93663.0,93634.0,0.01067988]
[1745427357335,0.05153771,93662.0,93633.0,0.34]
[1745427357554,0.0478,93660.0,93635.0,0.01067976]
[1745427357748,0.0478,93658.0,93633.0,0.01067999]
[1745427357981,0.10689014,93657.0,93634.0,0.01067988]
[1745427358197,0.10689014,93657.0,93630.0,0.37985306]
[1745427358383,0.10689014,93657.0,93640.0,0.36917273]
[1745427359367,0.10689014,93657.0,93631.0,0.21360418]
[1745427359368,0.10689014,93653.0,93631.0,0.34]
[1745427359621,0.0465,93652.0,93635.0,0.001]
[1745427359838,0.10689014,93651.0,93635.0,0.001]
[1745427360045,0.10689014,93651.0,93640.0,0.36917273]
[1745427360451,0.10689014,93651.0,93635.0,0.22427402]
[1745427360650,0.10689014,93651.0,93633.0,0.21359943]
[1745427360811,0.11062794,93651.0,93632.0,0.22428197]
[1745427361005,0.11062794,93651.0,93634.0,0.01067988]
[1745427361207,0.11062794,93651.0,93632.0,0.22428182]
[1745427361208,0.10296,93650.0,93632.0,0.22428182]
[1745427361404,0.10689014,93649.0,93633.0,0.22427897]
[1745427361611,0.10689014,93649.0,93634.0,0.21359683]
[1745427361822,0.10689014,93649.0,93635.0,0.22427417]
[1745427362023,0.10689014,93649.0,93634.0,0.22427626]
[1745427362231,0.10689014,93649.0,93634.0,0.01067988]
[1745427362594,0.10689014,93649.0,93635.0,0.01067976]
[1745427362807,0.10689014,93649.0,93633.0,0.01067999]
[1745427363003,0.10689014,93649.0,93633.0,0.22427864]
[1745427363160,0.10689014,93649.0,93635.0,0.01067976]
[1745427363359,0.10689014,93649.0,93636.0,0.01067965]
[1745427363570,0.10689014,93649.0,93639.0,0.36917273]
[1745427363771,0.10689014,93649.0,93641.0,0.22425968]
[1745427363974,0.10689014,93649.0,93642.0,0.21357839]
[1745427364322,0.10689014,93649.0,93646.0,0.22424658]
[1745427364517,0.10689014,93649.0,93646.0,0.01067851]
[1745427364960,0.0451,93656.0,93646.0,0.01067851]
[1745427364961,0.10296,93656.0,93651.0,0.22423576]
[1745427365160,0.10689014,93655.0,93651.0,0.22423576]
[1745427365318,0.10689014,93655.0,93648.0,0.01067828]
[1745427365522,0.10689014,93655.0,93644.0,0.34]
[1745427365796,0.10689014,93655.0,93646.0,0.21357013]
[1745427366024,0.001,93649.0,93646.0,0.22424873]
[1745427366200,0.001,93649.0,93646.0,0.01067851]
[1745427366412,0.001,93649.0,93630.0,0.37985306]
[1745427366413,0.10689014,93648.0,93630.0,0.37985306]
[1745427366581,0.0037377,93647.0,93631.0,0.34]
[1745427366794,0.0465,93645.0,93631.0,0.34]
[1745427366990,0.10689014,93644.0,93631.0,0.34]
[1745427367196,0.00373781,93643.0,93631.0,0.34]
[1745427367415,0.10689014,93642.0,93633.0,0.34]
[1745427367579,0.10689014,93642.0,93631.0,0.342]
[1745427368033,0.10689014,93642.0,93631.0,0.35268022]
[1745427368203,0.10689014,93642.0,93634.0,0.01067988]
[1745427368375,0.10689014,93642.0,93631.0,0.56628433]
[1745427368575,0.10689014,93642.0,93633.0,0.34]
[1745427369687,0.10689014,93642.0,93631.0,0.342]
[1745427369887,0.10689014,93642.0,93631.0,0.35368022]
[1745427370079,0.10689014,93642.0,93633.0,0.001]
[1745427370795,0.10689014,93642.0,93633.0,0.002]
[1745427371934,0.10689014,93642.0,93639.0,0.21358597]
[1745427372178,0.10296,93656.0,93650.0,0.22423869]
[1745427372403,0.10296,93656.0,93649.0,0.01067817]
[1745427372608,0.10296,93656.0,93642.0,0.01067896]
[1745427372818,0.10669717,93661.0,93644.0,0.01067874]
[1745427373030,0.10689014,93660.0,93644.0,0.01067874]
[1745427373251,0.003,93656.0,93645.0,0.34]
[1745427373671,0.003,93656.0,93646.0,0.01067851]
[1745427373877,0.004,93656.0,93648.0,0.01067828]
[1745427374077,0.004,93656.0,93649.0,0.01067817]
[1745427374984,0.005,93656.0,93647.0,0.22424439]
[1745427375189,0.001,93656.0,93645.0,0.35067862]
[1745427375390,0.003,93656.0,93648.0,0.21356542]
[1745427375806,0.003,93656.0,93648.0,0.01067828]
[1745427376051,0.003,93656.0,93648.0,0.22424368]
[1745427376251,0.004,93656.0,93646.0,0.22424874]
[1745427376427,0.004,93656.0,93647.0,0.22424636]
[1745427376428,0.002,93656.0,93647.0,0.22424636]
[1745427376633,0.002,93656.0,93648.0,0.01067828]
[1745427376634,0.006,93656.0,93648.0,0.01067828]
[1745427377089,0.004,93656.0,93648.0,0.01067828]
[1745427377306,0.005,93656.0,93652.0,0.01067782]
[1745427377514,0.005,93656.0,93651.0,0.01067794]
[1745427377771,0.005,93656.0,93646.0,0.34]
[1745427377772,0.004,93656.0,93646.0,0.34]
[1745427377913,0.10689014,93655.0,93629.0,0.01068045]
[1745427378118,0.10689014,93655.0,93631.0,0.01068022]
[1745427378119,0.0497,93653.0,93631.0,0.01068022]
[1745427378320,0.110628,93652.0,93631.0,0.34]
[1745427378518,0.110628,93652.0,93631.0,0.35068022]
[1745427378720,0.10689014,93652.0,93632.0,0.0106801]
[1745427378987,0.02093901,93651.0,93630.0,0.36917273]
[1745427379187,0.02093901,93651.0,93623.0,0.21447238]
[1745427379188,0.15249014,93650.0,93623.0,0.21447238]
[1745427379393,0.00373803,93649.0,93631.0,0.001]
[1745427379597,0.10689014,93648.0,93631.0,0.341]
[1745427379838,0.00373816,93647.0,93630.0,0.37985306]
[1745427380028,0.10689014,93646.0,93633.0,0.01067999]
[1745427380448,0.12710915,93646.0,93632.0,0.0116801]
[1745427380649,0.12710915,93646.0,93632.0,0.001]
[1745427380861,0.10689014,93636.0,93632.0,0.001]
[1745427381119,0.30415014,93635.0,93632.0,0.001]
[1745427381521,0.30415014,93635.0,93626.0,0.01068079]
[1745427381757,0.0487,93645.0,93632.0,0.0106801]
[1745427381931,0.10296,93641.0,93634.0,0.01067988]
[1745427382144,0.046,93644.0,93641.0,0.01067908]
[1745427382344,0.0487,93655.0,93649.0,0.01067817]
[1745427382542,0.0487,93655.0,93645.0,0.01067862]
[1745427382543,0.10689014,93654.0,93645.0,0.36917273]
[1745427382957,0.10689014,93654.0,93635.0,0.01067976]
[1745427383158,0.10689014,93654.0,93637.0,0.34]
[1745427383361,0.001,93644.0,93638.0,0.01067942]
[1745427383585,0.001,93644.0,93637.0,0.56427]
[1745427383586,0.10689014,93643.0,93637.0,0.34]
[1745427384170,0.10689014,93643.0,93634.0,0.01067988]
[1745427384372,0.10689014,93643.0,93633.0,0.34]
[1745427385173,0.10689014,93643.0,93631.0,0.34]
[1745427385515,0.10689014,93643.0,93633.0,0.01067999]
[1745427385812,0.10689014,93643.0,93631.0,0.56428446]
[1745427386115,0.10689014,93643.0,93634.0,0.001]
[1745427386462,0.10689014,93643.0,93633.0,0.01067999]
[1745427386756,0.10689014,93643.0,93638.0,0.01067942]
[1745427387082,0.10689014,93643.0,93634.0,0.34]
[1745427387483,0.048,93642.0,93633.0,0.001]
[1745427387807,0.10689014,93641.0,93627.0,0.56429352]
[1745427388039,0.10689014,93641.0,93630.0,0.2242861]
[1745427388311,0.10689014,93641.0,93631.0,0.35068022]
[1745427388487,0.10689014,93641.0,93631.0,0.56428349]
[1745427388873,0.10689014,93641.0,93632.0,0.0106801]
[1745427389069,0.10689014,93641.0,93631.0,0.34]
[1745427389274,0.10689014,93641.0,93631.0,0.2136039]
[1745427389518,0.10689014,93641.0,93633.0,0.01067999]
[1745427389675,0.10689014,93641.0,93632.0,0.2242819]
[1745427390069,0.10689014,93641.0,93631.0,0.22628412]
[1745427390286,0.10689014,93641.0,93632.0,0.0106801]
[1745427390486,0.10689014,93641.0,93632.0,0.22428223]
[1745427390691,0.10689014,93641.0,93633.0,0.01167999]
[1745427391832,0.10689014,93641.0,93633.0,0.22527974]
[1745427392051,0.10689014,93641.0,93635.0,0.01067976]
[1745427392263,0.10689014,93641.0,93634.0,0.22427735]
[1745427392460,0.10689014,93641.0,93633.0,0.22427988]
[1745427392657,0.10689014,93641.0,93632.0,0.0116801]
[1745427392884,0.10689014,93641.0,93634.0,0.01067988]
[1745427393535,0.0474,93651.0,93638.0,0.01067942]
[1745427393755,0.10689014,93650.0,93638.0,0.01067942]
[1745427394371,0.10689014,93650.0,93637.0,0.01067953]
[1745427394794,0.10689014,93650.0,93637.0,0.22426983]
[1745427395016,0.10689014,93650.0,93639.0,0.01067931]
[1745427395410,0.10789014,93650.0,93642.0,0.01067896]
[1745427395617,0.10789014,93650.0,93639.0,0.01067931]
[1745427395818,0.10889014,93650.0,93641.0,0.01067908]
[1745427396025,0.10889014,93650.0,93640.0,0.01067919]
[1745427396261,0.10789014,93650.0,93641.0,0.2242603]
[1745427396470,0.10789014,93650.0,93642.0,0.01067896]
[1745427396627,0.10789014,93650.0,93643.0,0.22425388]
[1745427396833,0.10789014,93650.0,93643.0,0.01067885]
[1745427397160,0.10789014,93650.0,93647.0,0.01067839]
[1745427397351,0.001,93650.0,93649.0,0.21356341]
[1745427398063,0.002,93650.0,93649.0,0.21356341]
[1745427399176,0.005,93650.0,93649.0,0.21356341]
[1745427399379,0.003,93650.0,93649.0,0.21356341]
[1745427399580,0.006,93650.0,93649.0,0.21356341]
[1745427400009,0.003,93650.0,93649.0,0.21356341]
[1745427400367,0.005,93650.0,93649.0,0.21356341]
[1745427400575,0.008,93650.0,93649.0,0.21356341]
[1745427401060,0.008,93650.0,93647.0,0.35067839]
[1745427401472,0.008,93650.0,93647.0,0.56424581]
[1745427401679,0.11489014,93650.0,93647.0,0.34]
[1745427401882,0.10689014,93649.0,93647.0,0.34]
[1745427402153,0.10689014,93649.0,93635.0,0.01067976]
[1745427402154,0.10689014,93649.0,93641.0,0.34]
[1745427402296,0.10689014,93649.0,93630.0,0.36917273]
[1745427402513,0.0477,93647.0,93629.0,0.01068045]
[1745427402716,0.11062787,93646.0,93630.0,0.01068033]
[1745427402928,0.11062787,93646.0,93634.0,0.55359754]
[1745427403127,0.10689014,93646.0,93639.0,0.01067931]
[1745427403331,0.10689014,93646.0,93637.0,0.22426862]
[1745427403530,0.10689014,93646.0,93638.0,0.01067942]
[1745427403727,0.10689014,93646.0,93637.0,0.22426862]
[1745427403931,0.10689014,93646.0,93634.0,0.01067988]
[1745427404155,0.00373773,93645.0,93637.0,0.01067953]
[1745427404363,0.10689014,93644.0,93637.0,0.01067953]
[1745427404520,0.10689014,93644.0,93636.0,0.01067965]
[1745427404725,0.10689014,93644.0,93635.0,0.34]
[1745427405124,0.10689014,93644.0,93635.0,0.35067976]
[1745427405327,0.10689014,93644.0,93635.0,0.34]
[1745427405537,0.10689014,93644.0,93636.0,0.01067965]
[1745427405768,0.10689014,93644.0,93638.0,0.01067942]
[1745427405994,0.10689014,93644.0,93638.0,0.224267]
[1745427406208,0.10689014,93644.0,93643.0,0.21357709]
[1745427406401,0.0478,93654.0,93648.0,0.01067828]
[1745427406607,0.10689014,93653.0,93648.0,0.01067828]
[1745427406840,0.10689014,93653.0,93648.0,0.22424258]
[1745427406960,0.10689014,93653.0,93650.0,0.01067805]
[1745427407374,0.0464,93667.0,93653.0,0.01067771]
[1745427407588,0.10689014,93660.0,93654.0,0.0106776]
[1745427407783,0.10689014,93660.0,93655.0,0.21354972]
[1745427407987,0.10689014,93660.0,93655.0,0.01067748]
[1745427408817,0.10689014,93660.0,93656.0,0.00666881]
[1745427409173,0.10689014,93660.0,93657.0,0.00666881]
[1745427409387,0.11089014,93660.0,93657.0,0.00666881]
[1745427409568,0.11089014,93660.0,93658.0,0.00666881]
[1745427409769,0.11089014,93660.0,93659.0,0.21354061]
[1745427410024,0.11089014,93660.0,93659.0,0.00666881]
[1745427410440,0.004,93660.0,93659.0,0.00666881]
[1745427410649,0.0464,93667.0,93660.0,0.01067691]
[1745427410794,0.10701413,93663.0,93660.0,0.01067691]
[1745427411003,0.004,93660.0,93659.0,0.01734584]
[1745427411207,0.004,93660.0,93659.0,0.01067703]
[1745427411743,0.005,93660.0,93659.0,0.22421764]
[1745427412061,0.005,93660.0,93659.0,0.57088616]
[1745427412633,0.005,93660.0,93659.0,0.56421764]
[1745427413640,0.00012399,93663.0,93662.0,0.21353377]
[1745427415283,0.00112399,93663.0,93662.0,0.21353377]
[1745427418112,0.00112399,93663.0,93662.0,0.55353377]
[1745427418311,0.00112399,93663.0,93662.0,0.60323377]
[1745427419465,0.00112399,93663.0,93662.0,0.60523377]
[1745427419925,0.00012399,93663.0,93662.0,0.60323377]
[1745427420361,0.00012399,93663.0,93662.0,0.60623377]
[1745427420763,0.00012399,93663.0,93662.0,0.60723377]
[1745427421395,0.00012399,93663.0,93662.0,0.60623377]
[1745427422027,0.00012399,93663.0,93662.0,0.60823377]
[1745427422403,0.00012399,93663.0,93662.0,0.345]
[1745427422853,0.00012399,93663.0,93662.0,0.62007462]